Cogmind - Beta 16 @@@ ROGUE MODE // 2025.12.30 @ 22:37:06 Player: Bity Result: Destroyed by D-53 Grenadier with Mini Grenade Launcher Performance ------------- Evolutions (1) 500 Regions Visited (3) 600 Robots Destroyed (47) 235 Value Destroyed (1061) 1061 Prototype IDs (2) 40 Alien Tech Used (0) 0 Bonus (13) 13 TOTAL SCORE: 2449 Bonus ------- High Alert Combat Kills 13 Cogmind --------- Core Integrity 0/400 Matter 227/300 Energy 126/160 System Corruption 1% Temperature Cool (21) Movement Walking (175) Ox1 Location -9/Mines Parts ------- > --- POWER (1) -------- Light Nuclear Core > --- PROPULSION (4) --- Aluminum Leg Aluminum Leg Aluminum Leg > --- UTILITY (2) ------ High-capacity Storage Unit Signal Interpreter > --- WEAPON (2) ------- Field Laser Field Laser > --- INVENTORY (20) --- Ion Engine Light Ion Engine Light Treads Light Treads Light Treads Aluminum Leg Wheel VTOL Module Heat Sink Heat Sink Heat Sink Sensor Array Light Armor Plating Authchip [Propulsion] Tractor Beam Field Laser Rocket Launcher Mini Grenade Launcher Datajack Hammer Peak State ------------ > --- POWER ------------ Light Nuclear Core > --- PROPULSION ------- Aluminum Leg Aluminum Leg Aluminum Leg Aluminum Leg > --- UTILITY ---------- High-capacity Storage Unit Signal Interpreter > --- WEAPON ----------- Field Laser Field Laser > --- INVENTORY -------- Ion Engine Light Ion Engine Light Treads Light Treads Light Treads Aluminum Leg Wheel VTOL Module Heat Sink Heat Sink Heat Sink Sensor Array Light Armor Plating Tractor Beam Improved EM Shotgun Shotgun Rocket Launcher Mini Grenade Launcher Datajack Hammer [Rating: 17] Favorites ----------- Power Light Ion Engine Engine Light Ion Engine Power Core Light Nuclear Core Propulsion Aluminum Leg Treads Improved Treads Leg Aluminum Leg Wheel Wheel Utility Large Storage Unit Device Seismic Detector Storage Large Storage Unit Processor Signal Interpreter Weapon Small Laser Energy Gun Small Laser Ballistic Gun Light Assault Rifle Launcher Mini Grenade Launcher Special Weapon Mining Laser Impact Weapon Hammer Build | -11 -10 -9 -9 ------- Run | Yrd Mat Mat Min Slots Evolved 2 | . . 2 . Power . | . . . . Propulsion 2 | . . 2 . Utility . | . . . . Weapon . | . . . . Parts Attached 34 | 1 6 25 2 Power 5 | . 1 4 . Engine 4 | . 1 3 . Core 1 | . . 1 . Reactor . | . . . . Propulsion 11 | . 1 10 . Treads 2 | . . 2 . Leg 7 | . 1 6 . Wheel 2 | . . 2 . Hover . | . . . . Flight . | . . . . Utility 4 | 1 1 2 . Device 1 | 1 . . . Storage 2 | . 1 1 . Processor 1 | . . 1 . Hackware . | . . . . Protection . | . . . . Artifact . | . . . . Weapon 14 | . 3 9 2 Energy Gun 9 | . 2 6 1 Energy Cannon . | . . . . Ballistic Gun 1 | . . 1 . Ballistic Cannon . | . . . . Launcher 2 | . . 1 1 Special Weapon 1 | . . 1 . Impact Weapon 1 | . 1 . . Slashing Weapon . | . . . . Piercing Weapon . | . . . . Special Melee Weapon . | . . . . Unidentified Prototypes 2 | . . 2 . Parts Lost 10 | . 4 5 1 Power 3 | . 1 2 . Propulsion 4 | . . 3 1 Utility 1 | . 1 . . Weapon 2 | . 2 . . Highest Loss Streak 2 | . 2 1 1 To Critical Strikes . | . . . . Average Backups 13 | 6 9 17 20 Power 1 | 1 1 1 2 Propulsion 5 | 4 5 5 6 Utility 3 | . 1 4 7 Weapon 3 | 1 1 4 4 Tool/Special . | . . . . Unused Backups 16 | 1 2 3 10 Power 2 | . . 1 1 Propulsion 4 | 1 . 1 2 Utility 8 | . 2 . 6 Weapon 1 | . . 1 . Tool/Special 1 | . . . 1 Average Slot Usage (%) 93 | . 92 93 100 Engine 9 | . 11 9 . Core 1 | . . 1 11 Treads 2 | . . 5 . Leg 29 | . 27 29 44 Wheel 2 | . . 4 . Device 5 | . 12 . . Storage 12 | . 14 11 11 Processor 4 | . . 9 11 Energy Gun 13 | . 11 14 9 Ballistic Gun 6 | . 8 5 . Impact Weapon 3 | . 5 1 . Peak Build Rating 17 | 7 8 17 17 Average Rating 10 | 6 6 13 16 On Entrance 9 | 6 7 6 17 Avg Prop Armor Cover (%) 14 | . 11 16 . Naked Turns . | . . . . Heaviest Build 54 | 11 27 54 51 Greatest Support 40 | 20 20 40 40 Greatest Overweight (x) 5 | . 2 5 1 Average Overweight (x) 1 | . 1 1 1 Largest Inventory Capacity 20 | 8 15 20 20 Average Capacity 16 | 8 14 19 20 Most Carried 20 | 8 11 20 20 Average Carried 13 | 6 9 17 20 Final Capacity 20 | 8 15 20 20 Final Carried 20 | 8 9 20 20 Class Distribution -------------------- 89% | Mutant 10% | Scavenger-Mutant Dominant Class ---------------- Mutant | -10/Materials Mutant | -9/Materials Mutant | -9/Mines Resources | -11 -10 -9 -9 ----------- Run | Yrd Mat Mat Min Matter Collected 713 | 222 78 413 . Remotely . | . . . . Salvage Created 1451 | 179 246 998 28 Parts 97 | 21 12 59 5 Haulers Intercepted 2 | . . 2 . Recyclers Shooed . | . . . . Parts Field Recycled . | . . . . Retrieved Matter . | . . . . Parts Self-Destructed . | . . . . Prevented . | . . . . Parts Restored . | . . . . Kills | -11 -10 -9 -9 ------- Run | Yrd Mat Mat Min Combat Hostiles Destroyed 37 | . 7 25 5 Melee 2 | . 1 1 . Guns 29 | . 5 23 1 AOE 4 | . . . 4 Classes Destroyed 8 | 2 2 3 1 Tunneler 5 | 5 . . . Hauler 2 | . . 2 . Recycler 1 | 1 . . . Watcher 3 | . . 3 . Swarmer 15 | . 3 8 4 Grunt 16 | . 4 12 . Sentry 5 | . . 5 . Assembled 1 | . . . 1 Best Kill Streak 5 | 4 3 5 5 Combat Bots Only 5 | . 3 4 5 Max Kills in Single Turn 4 | 1 2 1 4 Gunslinging 1 | . 1 . . Exploded 4 | . . . 4 Melee 1 | . 1 1 . Uniques/NPCs Destroyed . | . . . . Combat | -11 -10 -9 -9 -------- Run | Yrd Mat Mat Min Hostile Shots Fired 227 | . 52 161 14 Missed 64 | . 17 44 3 Hits 163 | . 35 117 11 Projectile 163 | . 35 117 11 AOE 6 | . 1 . 5 Critical Strikes 3 | . 1 2 . Part Disruptions 1 | . 1 . . Damage Taken 2116 | . 482 1383 251 Core 537 | . 121 311 105 Absorbed by Shields . | . . . . Regen/Repaired (Parts) 63 | . 63 . . Core Remaining (%) 75 | 100 51 . . Volleys Fired 118 | 12 25 79 2 Largest 2 | 2 2 2 2 Hottest 126 | 60 60 126 126 Shots Fired 211 | 24 37 146 4 Gun 209 | 24 37 146 2 Cannon . | . . . . Launcher 2 | . . . 2 Special . | . . . . Kinetic 80 | 12 23 45 . Thermal 122 | 12 7 101 2 Explosive 2 | . . . 2 Electromagnetic 7 | . 7 . . Robot Hit Streak 16 | 6 14 16 1 Robot Miss Streak 3 | 1 3 3 1 Penetration Max . | . . . . Secondary Targets 4 | . 1 3 . Max Gunslinging Chain 1 | . 1 1 . Shots Hit Robots 160 | 15 35 108 2 Core Hits 63 | 9 11 38 5 Critical Kills . | . . . . Critical Parts Destroyed 1 | . 1 . . Critical Strikes 6 | . 1 5 . Burn 5 | . . 5 . Destroy 1 | . 1 . . Melee Attacks 14 | . 11 3 . Impact 14 | . 11 3 . Slashing . | . . . . Piercing . | . . . . Sneak Attacks . | . . . . Combat Hostiles . | . . . . Follow-up Attacks . | . . . . Damage Inflicted 2589 | 148 487 1720 234 Guns 2075 | 148 252 1658 17 Cannons . | . . . . Explosions 217 | . . . 217 Melee 272 | . 235 37 . Ramming 25 | . . 25 . Kinetic 643 | 48 144 451 . Thermal 1367 | 100 43 1207 17 Explosive 217 | . . . 217 Electromagnetic 65 | . 65 . . Impact 272 | . 235 37 . Slashing . | . . . . Piercing . | . . . . Highest Corruption 1 | . 1 1 1 Average Corruption 1 | . 1 1 1 Corruption Purged . | . . . . Corruption Blocked . | . . . . Effects 10 | . 2 8 . Message Errors 5 | . 1 4 . Parts Fused 1 | . . 1 . Data Loss (minor) 2 | . 1 1 . Weapon Failures 2 | . . 2 . Overload Shots . | . . . . Overflow Damage 20 | . 3 . 17 Projectiles . | . . . . Explosions 17 | . . . 17 Melee 3 | . 3 . . Knockbacks 1 | . 1 . . Impact 1 | . 1 . . Kinetic . | . . . . Secondary . | . . . . Self-Inflicted Damage 25 | . . 25 . Shots . | . . . . Rammed . | . . . . Targets Rammed . | . . . . Kicked . | . . . . Crushed . | . . . . Highest Temperature 333 | 40 25 333 21 Average Temperature 94 | 23 12 110 21 Received Heat Transfer 726 | . 255 471 . Siege Activations . | . . . . Martial Activations . | . . . . Shielding Activations . | . . . . Robots Disrupted . | . . . . Combat Hostiles . | . . . . Robots Corrupted 1 | . 1 . . Combat Hostiles 1 | . 1 . . Parts Fried 1 | . 1 . . Impact Corruptions 2 | . 2 . . Robots Melted 1 | . . 1 . Combat Hostiles 1 | . . 1 . Parts Melted 14 | . . 14 . Heat Transferred 3560 | 225 100 3198 37 Parts Sabotaged . | . . . . Parts Stolen . | . . . . Parts Stripped . | . . . . Power Chain Reactions . | . . . . Alert | -11 -10 -9 -9 ------- Run | Yrd Mat Mat Min Maximum Alert Level 2 | . . 2 1 Low Security (%) 76 | 100 100 51 86 Level 1 19 | . . 40 13 Level 2 4 | . . 8 . Level 3 . | . . . . Level 4 . | . . . . Level 5 . | . . . . High Security . | . . . . Max Security . | . . . . Peak Influence 417 | 20 70 417 233 Initial 151 | . . . 151 Average 102 | 4 9 198 153 Influence Increases 1174 | 30 201 841 102 Destroy 0b10 Robot/C 720 | . 140 500 80 Destroy 0b10 Robot/NC 55 | 30 . 25 . Destroy Leader 170 | . 30 130 10 Successful Hack 33 | . 15 18 . Disable Machine 15 | . . 15 . Destroy Structure 16 | . 1 3 12 Lose Combat Pursuer 165 | . 15 150 . Influence Decreases 951 | 30 201 451 269 Entered New Map 239 | . . . 239 Time Decay 632 | 30 181 401 20 Lost Part 80 | . 20 50 10 Squads Dispatched 5 | . 2 3 . Investigation 1 | . . 1 . Extermination . | . . . . Reinforcement 4 | . 2 2 . Assault . | . . . . Garrison . | . . . . Intercept . | . . . . Searches Triggered . | . . . . Construction Impeded 1 | . . 1 . Haulers Reinforced . | . . . . Active Scanning Responses . | . . . . Cargo Convoy Interrupts . | . . . . Stealth | -11 -10 -9 -9 --------- Run | Yrd Mat Mat Min Distress Signals 2 | . . 2 . Communications Jammed . | . . . . Distress Signals . | . . . . Times Spotted 64 | . 18 39 7 Peak Tracking Total 5 | . 3 5 5 Tactical Retreats 5 | . 1 4 . Traps | -11 -10 -9 -9 ------- Run | Yrd Mat Mat Min Traps Triggered . | . . . . Indirectly . | . . . . Trap Hack Attempts . | . . . . Triggered . | . . . . Disarmed . | . . . . Reprogrammed . | . . . . Reused . | . . . . Traps Extracted . | . . . . Installed . | . . . . Triggered . | . . . . Machines | -11 -10 -9 -9 ---------- Run | Yrd Mat Mat Min Machines Disabled 1 | . . 1 . Max in Single Turn 1 | . . 1 . Machines Repaired . | . . . . Machines Dismantled . | . . . . Machines Sabotaged . | . . . . Overloaded Fab Kills . | . . . . Hacking | -11 -10 -9 -9 --------- Run | Yrd Mat Mat Min Machines Accessed 14 | . 8 6 . Terminals 11 | . 6 5 . Fabricators . | . . . . Repair Stations 1 | . 1 . . Recycling Units 1 | . 1 . . Scanalyzers 1 | . . 1 . Garrison Access . | . . . . Total Hacks 41 | . 21 20 . Successful 22 | . 12 10 . Failed 18 | . 9 9 . Catastrophic . | . . . . Database Lockouts 1 | . . 1 . Manual 27 | . 15 12 . Terminals 33 | . 18 15 . Fabricators . | . . . . Repair Stations 2 | . 2 . . Recycling Units 1 | . 1 . . Scanalyzers 5 | . . 5 . Garrison Access . | . . . . Terminal Hacks 5 | . 3 2 . Emergency Access Points 1 | . 1 . . Terminal Index 2 | . 1 1 . Recall Investigation 1 | . . 1 . Hauler Manifests 1 | . 1 . . Fabricator Hacks . | . . . . Repair Station Hacks 2 | . 2 . . Scan Component 1 | . 1 . . Repair 1 | . 1 . . Recycling Unit Hacks 1 | . 1 . . Report Inventory 1 | . 1 . . Scanalyzer 4 | . . 4 . Insert Component 1 | . . 1 . Analyze 1 | . . 1 . Retrieve Study 2 | . . 2 . Garrison Access Hacks . | . . . . Unauthorized Hacks 10 | . 6 4 . Terminals 10 | . 6 4 . Assimilate 2 | . 2 . . Botnet 8 | . 4 4 . Fabricators . | . . . . Repair Stations . | . . . . Recycling Units . | . . . . Scanalyzers . | . . . . Garrison Access . | . . . . Data Cores Recovered . | . . . . Used . | . . . . Hacking Detections 12 | . 6 6 . Full Trace Events 2 | . 1 1 . Feedback Events . | . . . . Feedback Blocked . | . . . . Robot Schematics Acquired . | . . . . Robots Built . | . . . . Authchips . | . . . . Time . | . . . . Total Robot Build Rating . | . . . . Part Schematics Acquired 1 | . . 1 . Parts Built . | . . . . Authchips . | . . . . Time . | . . . . Total Part Build Rating . | . . . . Part Studies Acquired 2 | . . 2 . Parts Repaired 1 | . 1 . . Time 26 | . 26 . . Parts Recycled . | . . . . Recycled Matter . | . . . . Retrieved Matter . | . . . . Retrieved Components . | . . . . Parts Scanalyzed 1 | . . 1 . Part Schematics Acquired 1 | . . 1 . Parts Damaged . | . . . . Bothacking | -11 -10 -9 -9 ------------ Run | Yrd Mat Mat Min Used RIF Installer . | . . . . Robots Hacked . | . . . . Non-combat . | . . . . Combat . | . . . . Robot Hacks Applied . | . . . . Relay Couplers Released . | . . . . Fabnet Peak Effective % . | . . . . Robots Rewired . | . . . . Allies Hacked . | . . . . Hacks Repelled . | . . . . Allies | -11 -10 -9 -9 -------- Run | Yrd Mat Mat Min Total Allies . | . . . . Largest Group . | . . . . Highest-Rated Group . | . . . . Highest-Rated Ally . | . . . . Total Orders . | . . . . Ally Attacks . | . . . . Total Damage . | . . . . Kills . | . . . . Allies Corrupted . | . . . . Allies Melted . | . . . . Intel | -11 -10 -9 -9 ------- Run | Yrd Mat Mat Min Active Infowar (turns) 927 | 24 903 . . Seismic 927 | 24 903 . . Robot Analysis Total . | . . . . Derelict Logs Recovered . | . . . . Drone Launches . | . . . . Drone Recoveries . | . . . . Exploration | -11 -10 -9 -9 ------------- Run | Yrd Mat Mat Min Turns Passed 2301 | 111 1045 1092 53 Spaces Moved 867 | 45 405 393 24 Core . | . . . . Treads 26 | . . 26 . Legs 706 | 45 405 232 24 Wheels 135 | . . 135 . Hover . | . . . . Flight . | . . . . Fastest Speed 95 | 120 120 95 175 Average Speed 186 | 120 205 174 175 Slowest Speed 320 | 120 260 320 175 Overloaded Moves . | . . . . Propulsion Burnouts . | . . . . Robots Hopped . | . . . . Potential Cave-ins . | . . . . Cave-ins Triggered . | . . . . Exploration Rate (%) 28 | 4 62 37 12 Regions Visited 3 Branch Regions 1 Pre-discovered Areas . | . . . . Known Exits Taken 1 | . . 1 . Unknown Exits Taken 2 | 1 1 . . Scrap Searched . | . . . . Spaces Dug 1 | . 1 . . Terrain Destroyed 15 | . 1 . 14 Melee 1 | . 1 . . Projectile . | . . . . AOE 14 | . . . 14 Terrain Rammed 1 | . . 1 . Walls Destroyed . | . . . . Machines Disabled 1 | . . 1 . Actions | -11 -10 -9 -9 --------- Run | Yrd Mat Mat Min Total 1321 | 80 568 642 31 Wait 237 | 19 116 101 1 Move 864 | 44 404 392 24 Hop . | . . . . Pick Up 28 | 3 4 21 . Fast Attach 6 | 1 1 4 . Attach 7 | . 3 4 . Detach . | . . . . Swap 30 | . 3 23 4 Drop 16 | 1 1 14 . Fire 118 | 12 25 79 2 Melee 14 | . 11 3 . Ram 1 | . . 1 . Kick . | . . . . Crush . | . . . . Escape Stasis . | . . . . Rewire . | . . . . Trap . | . . . . Miscellaneous . | . . . . Route ------- -11/Scrapyard -10/Materials (discovered 3 exits: *Mat x2 / [*Min]) -9/Materials -9/Mines History --------- Turn | Location | Event 1 | -11/Scrapyard | Discovered new exit (range 3) 112 | -11/Scrapyard | Entered Materials 283 | -10/Materials | Discovered new exit (range 16) 317 | -10/Materials | Build established: Mutant 515 | -10/Materials | Discovered new exit (range 7) 628 | -10/Materials | Discovered new exit (range 12) 897 | -10/Materials | Repaired Aluminum Leg 1157 | -10/Materials | Entered another Materials area 1157 | -9/Materials | Evolved 2 slots: Propulsion x2 1821 | -9/Materials | Core integrity fell below 50% 2103 | -9/Materials | Central database locked down 2125 | -9/Materials | Discovered new exit (range 16) 2225 | -9/Materials | Identified exit to Mines 2249 | -9/Materials | Entered Mines 2257 | -9/Mines | Assembled infested the area 2299 | -9/Mines | Core integrity fell below 20% 2302 | -9/Mines | Destroyed by D-53 Grenadier with Mini Grenade Launcher Last Messages --------------- 02220_ A-02 Transporter destroyed. 02225_ EXIT=IDENTIFIED: MINES 02239_ Dropped Imp. EM Shotgun. 02240_ Acquired Authchip [Propulsion]. LOCATION=MINES GOAL=ESCAPE 02257_ ALERT: Infestation in the mines, dispatching Demolisher response squad. 02295_ S-10 Pest destroyed. 02295_ Destroyed Flight Unit. 02295_ S-10 Pest destroyed. 02295_ Destroyed Lgt. Ion Engine. 02295_ S-10 Pest destroyed. 02295_ as-27142 destroyed. 02297_ C-45 Heavy ARC bursts open, deploying its payload. 02297_ D-53 Grenadier unfolds itself. 02300_ as-31841 destroyed. 02301_ S-10 Pest destroyed. 02302_ Aluminum Leg+ destroyed. Map ----- +----------------------------------------------------+ | ?????????????????????????????????????????????????? | | ?????????????????????????????????????????????????? | | ?????????????????????????????????????????????????? | | ?????????????????????????????????????????????????? | | ?????????????????????????????????????????????????? | | ?????????????????????????????????????????????????? | | ????????????????????????# ???????????????????????? | | ??????????????????????## ??????????????????????? | | ?????????????????????## ??????????????????????? | | ????????????????????? ###????????????????????? | | ????????????????????? ?????????????????????? | | ????????????????????? ?????????????????????? | | ?????????????????????? = ??????????????????????? | | ?????????????????????? =% ??????????????????????? | | ??????????????????????? #??????????????????????? | | ??????????????????????? #???????#??????????????? | | ??????????????????###### ###???? #??????????????? | | ????????????????### # # #???? #??????????????? | | ????????????????# ###? #??##??????????? | | ????????????????# = ## ## ####???????? | | ???????????????## ???????? | | ???????????????# ????????? | | ????????????????# #???????????????? | | ????????????????# ##???????????????? | | ?????????????????#?# d d ##???????????????? | | ???????????????????# @ #???????????????? | | ???????????????????### #??????????????? | | ????????????????????# # #??????????? | | ????????????????????## # """ #??????????? | | ?????????????????????## ### """ #??????????? | | ??????????????????????## ###?? """ #??????????? | | ???????????????????????# ????? ?????????????? | | ???????????????????????# ?????##### ????????????? | | ??????????????????????? ??????????# ????????????? | | ???????????????????????##????????????????????????? | | ?????????????????????????????????????????????????? | | ?????????????????????????????????????????????????? | | ?????????????????????????????????????????????????? | | ?????????????????????????????????????????????????? | | ?????????????????????????????????????????????????? | | ?????????????????????????????????????????????????? | | ?????????????????????????????????????????????????? | | ?????????????????????????????????????????????????? | | ?????????????????????????????????????????????????? | | ?????????????????????????????????????????????????? | | ?????????????????????????????????????????????????? | | ?????????????????????????????????????????????????? | | ?????????????????????????????????????????????????? | | ?????????????????????????????????????????????????? | | ?????????????????????????????????????????????????? | +----------------------------------------------------+ Best States ------------- Heat Dissipation 28 Energy Generation 14 Energy Capacity 280 Matter Stores 300 Matter Capacity 300 Sight Range 16 Terrain Scan Density 10 Evasion (%) 55 Recoil Reduction 1 Authchip Count 1 Item Schematics ----------------- Wheel | -9/Materials | Scanalyzed Robot Schematics ------------------ None Fabricated ------------ Nothing Repaired ---------- Aluminum Leg | 30% | -10/Materials Studied --------- Aluminum Leg | -9/Materials | Hacked Wheel | -9/Materials | Hacked Alien Tech Used ----------------- None Achievements -------------- None Challenges ------------ None Game ------ Seed ZioniteDrainedFlightbrick Manual? 0 Play Time 00:16:28 Cumulative 52.8 hours Start 2025.12.30 @ 22:21:01 End 2025.12.30 @ 22:37:06 Sessions 1 Manual Loads 0 Difficulty Rogue Special Mode None Game No. 71 Rogue 71 Adventurer 0 Explorer 0 Win Type - Total 1 Types 1/0/0/0/0/0/0/0/0/0 Lore% 39 Gallery% 45 Achievement% 35 Wizard Run 0 Options --------- Layout 2 ASCII 0 Keyboard 1 Movement Numpad Keybinds 0 Fullscreen 2 Font 24/Smallcaps Map View 50x44 Zoom Use 0% Tactical HUD 1 Map Filters NONE Filters NONE Steam 1 RUN: e933ea06-f3a3-49ce-8ee3-15d634446aa9